bitfinex/quotes_BTCUSD_20241010
["timestamp","ask_amount","ask_price","bid_price","bid_amount"]
[1728523969217,0.003634,60646.0,60645.0,2.79633664]
[1728523969657,0.003634,60646.0,60645.0,2.79833664]
[1728523969933,0.003634,60646.0,60645.0,2.79633664]
[1728523970142,0.003634,60646.0,60645.0,2.73878664]
[1728523970359,0.003634,60646.0,60645.0,2.74078664]
[1728523970587,0.003634,60646.0,60645.0,2.73878664]
[1728523971723,1e-06,60646.0,60645.0,2.74078664]
[1728523973346,1e-06,60646.0,60645.0,2.73878664]
[1728523974263,1e-06,60646.0,60645.0,2.74078664]
[1728523974484,1e-06,60646.0,60645.0,2.73878664]
[1728523976052,1e-06,60646.0,60645.0,2.74078664]
[1728523977174,1e-06,60646.0,60645.0,2.73878664]
[1728523978273,1e-06,60646.0,60645.0,4.37711364]
[1728523979830,1e-06,60646.0,60645.0,3.73382864]
[1728523980082,1e-06,60646.0,60645.0,3.47927364]
[1728523982064,1e-06,60646.0,60645.0,3.43808064]
[1728523982294,1e-06,60646.0,60645.0,3.16277264]
[1728523983888,0.001635,60646.0,60645.0,3.16277264]
[1728523984962,0.001635,60646.0,60645.0,2.63856964]
[1728523985261,0.001635,60646.0,60645.0,2.01485164]
[1728523988295,1e-06,60646.0,60645.0,2.01485164]
[1728523988516,1e-06,60646.0,60645.0,2.01685164]
[1728523989633,0.001636,60653.0,60652.0,0.287875]
[1728523989840,0.001636,60653.0,60652.0,4.72913679]
[1728523990286,0.001636,60653.0,60652.0,4.12682679]
[1728523990502,0.001636,60653.0,60652.0,4.00311479]
[1728523990713,0.001636,60653.0,60652.0,4.00511479]
[1728523990923,0.001636,60653.0,60652.0,3.93548179]
[1728523991582,0.001636,60653.0,60652.0,3.84947079]
[1728523992227,0.001636,60653.0,60652.0,3.81655279]
[1728523992441,0.001636,60653.0,60652.0,2.53902979]
[1728523992646,0.001636,60653.0,60652.0,1.77589679]
[1728523992889,0.001636,60653.0,60652.0,1.66093279]
[1728523993110,0.001636,60653.0,60652.0,1.42672714]
[1728523993315,0.001636,60653.0,60652.0,1.11551214]
[1728523995089,0.001636,60653.0,60652.0,1.29341214]
[1728523995558,0.001636,60653.0,60652.0,1.29541214]
[1728523996164,0.001636,60653.0,60652.0,1.29341214]
[1728523997883,0.001636,60653.0,60652.0,1.19361214]
[1728523998124,0.001636,60653.0,60652.0,1.06238114]
[1728523998330,0.001636,60653.0,60652.0,1.07772904]
[1728523998786,0.001636,60653.0,60652.0,1.07272904]
[1728523999507,0.001636,60653.0,60652.0,1.07772904]
[1728523999723,0.001636,60653.0,60652.0,1.07272904]
[1728524000590,0.001636,60653.0,60652.0,0.70890189]
[1728524000841,0.001636,60653.0,60652.0,0.30764325]
[1728524001512,0.13325367,60653.0,60652.0,0.19229535]
[1728524001976,0.39979311,60653.0,60652.0,0.003]
[1728524002216,0.39979311,60653.0,60652.0,0.164875]
[1728524002217,0.23492111,60653.0,60652.0,0.164875]
[1728524002459,0.23492111,60653.0,60650.0,0.164877]
[1728524002672,0.05151767,60652.0,60650.0,0.16488]
[1728524002887,0.21639267,60652.0,60648.0,0.18961287]
[1728524003115,0.06078511,60651.0,60650.0,0.16488]
[1728524003827,0.10997742,60651.0,60650.0,0.16488]
[1728524004066,0.0784,60650.0,60645.0,0.000917]
[1728524004299,0.19600998,60649.0,60647.0,0.164888]
[1728524004556,0.05151767,60648.0,60647.0,0.164887]
[1728524004784,0.12534122,60648.0,60647.0,0.164887]
[1728524005015,0.05151767,60648.0,60647.0,0.164887]
[1728524005269,0.13456815,60648.0,60647.0,0.164887]
[1728524005484,0.08305048,60648.0,60647.0,0.164887]
[1728524005706,0.05846368,60648.0,60647.0,0.164887]
[1728524005959,0.06046368,60648.0,60647.0,0.164887]
[1728524006403,0.08505048,60648.0,60647.0,0.164887]
[1728524007323,0.11050961,60648.0,60647.0,0.164887]
[1728524007602,0.29250187,60648.0,60647.0,0.164887]
[1728524008284,0.13508028,60648.0,60647.0,0.4132252]
[1728524008502,0.29289053,60648.0,60647.0,0.264887]
[1728524008723,0.01222693,60648.0,60647.0,0.264887]
[1728524009180,0.01222693,60648.0,60647.0,0.44872464]
[1728524009412,0.06155832,60648.0,60647.0,0.44872464]
[1728524009621,0.01222693,60648.0,60647.0,0.44872464]
[1728524010270,0.06155832,60648.0,60647.0,0.44872464]
[1728524012708,0.01222693,60648.0,60647.0,0.44872464]
[1728524012933,0.01222693,60648.0,60647.0,0.99575764]
[1728524013360,0.003,60648.0,60647.0,0.99575764]
[1728524015410,0.01219016,60648.0,60647.0,0.67921464]
[1728524015649,0.01219016,60648.0,60647.0,0.395377]
[1728524015650,0.003,60648.0,60647.0,0.395377]
[1728524015878,0.01219431,60648.0,60647.0,0.164887]
[1728524016110,0.11085709,60648.0,60647.0,0.164887]
[1728524016328,0.29309184,60648.0,60647.0,0.164887]
[1728524017434,0.29309184,60648.0,60646.0,0.000817]
[1728524017681,0.11090161,60648.0,60647.0,0.164888]
[1728524017881,0.2930566,60648.0,60647.0,0.164888]
[1728524018336,0.29303213,60648.0,60647.0,0.164888]
[1728524019271,0.19434376,60648.0,60647.0,0.164888]
[1728524019488,0.19334376,60648.0,60647.0,0.164888]
[1728524019710,0.31670962,60648.0,60647.0,0.164888]
[1728524019945,0.19334376,60648.0,60647.0,0.164888]
[1728524020179,0.01119431,60648.0,60647.0,0.165705]
[1728524020408,0.19334376,60648.0,60647.0,0.165705]
[1728524020636,0.31770734,60648.0,60647.0,0.165705]
[1728524021596,0.19434376,60648.0,60647.0,0.165705]
[1728524022280,0.11087692,60648.0,60647.0,0.165705]
[1728524022503,0.13555789,60648.0,60647.0,0.165705]
[1728524022750,0.31770734,60648.0,60647.0,0.165705]
[1728524022975,0.19434376,60648.0,60646.0,0.329782]
[1728524023171,0.19434376,60648.0,60647.0,0.164888]
[1728524023172,0.08620893,60648.0,60647.0,0.164888]
[1728524023439,0.01219431,60648.0,60647.0,0.164888]
[1728524023668,0.01219431,60648.0,60645.0,0.000917]
[1728524023669,0.0862063,60648.0,60646.0,0.16489]
[1728524023904,0.11088093,60648.0,60645.0,0.16581]
[1728524024170,0.07401429,60646.0,60645.0,0.16581]
[1728524024616,0.08319336,60646.0,60645.0,0.16581]
[1728524025962,0.00917907,60646.0,60645.0,0.16581]
[1728524026188,0.00917907,60646.0,60645.0,0.16681]
[1728524026676,0.00917907,60646.0,60645.0,0.16581]
[1728524026900,0.01417907,60646.0,60645.0,0.16581]
[1728524027124,0.01717907,60646.0,60645.0,0.16581]
[1728524027334,0.09119336,60646.0,60645.0,0.16581]
[1728524027556,0.01717907,60646.0,60645.0,0.16581]
[1728524030482,0.06651183,60646.0,60645.0,0.16581]
[1728524031837,0.06650861,60646.0,60645.0,0.16581]
[1728524032950,0.09117338,60646.0,60645.0,0.16581]
[1728524035609,0.09117338,60646.0,60645.0,0.17405722]
[1728524036052,0.09117338,60646.0,60645.0,0.16581]
[1728524036515,0.06650004,60646.0,60645.0,0.16581]
[1728524038047,0.01717907,60646.0,60645.0,0.16581]
[1728524039401,0.008,60646.0,60645.0,0.16581]
[1728524039611,0.008,60646.0,60645.0,2.54258779]
[1728524039856,0.008,60646.0,60645.0,2.40378279]
[1728524040075,0.05095342,60652.0,60651.0,0.287877]
[1728524040076,0.001634,60652.0,60651.0,0.287877]
[1728524040329,0.001636,60653.0,60651.0,0.287877]
[1728524040330,0.001636,60653.0,60651.0,3.66717464]
[1728524040547,0.05013642,60662.0,60650.0,0.18823315]
[1728524040548,0.000817,60662.0,60657.0,0.287861]
[1728524040792,0.000817,60662.0,60657.0,3.09695779]
[1728524041030,0.000817,60662.0,60657.0,1.28030079]
[1728524041501,0.000817,60662.0,60657.0,0.98211179]
[1728524042442,0.000817,60662.0,60657.0,1.05981179]
[1728524043138,0.002817,60658.0,60657.0,1.09396691]
[1728524045129,0.001636,60665.0,60662.0,0.198]
[1728524045350,0.001636,60665.0,60664.0,0.287842]
[1728524045560,0.001636,60665.0,60664.0,3.12817264]
[1728524046222,0.001636,60665.0,60664.0,3.21067264]
[1728524046658,0.002636,60665.0,60664.0,3.21067264]
[1728524047154,0.001636,60665.0,60664.0,3.21067264]
[1728524047394,0.002636,60665.0,60664.0,3.22067264]
[1728524048299,0.002636,60665.0,60664.0,4.66806464]
[1728524048507,0.002636,60665.0,60664.0,4.17041764]
[1728524048742,0.003636,60665.0,60664.0,4.18241764]
[1728524049171,0.003636,60665.0,60664.0,4.18441764]
[1728524049446,0.003636,60665.0,60664.0,4.28241764]
[1728524049612,0.2491552,60674.0,60673.0,0.45305015]
[1728524049820,0.2491552,60674.0,60673.0,0.71458779]
[1728524050030,0.25841097,60674.0,60673.0,0.71458779]
[1728524050247,0.000817,60674.0,60673.0,5.27589479]
[1728524050464,0.000817,60674.0,60673.0,4.13851279]
[1728524051562,0.000817,60674.0,60673.0,3.47112379]
[1728524051773,0.000817,60674.0,60673.0,3.10200379]
[1728524052070,0.000817,60674.0,60673.0,3.10500379]
[1728524052757,0.000817,60674.0,60673.0,3.11159679]
[1728524052968,0.000817,60674.0,60673.0,3.20719679]
[1728524053189,0.000817,60674.0,60673.0,3.20919679]
[1728524054074,0.000817,60674.0,60673.0,3.20719679]
[1728524054769,0.000817,60674.0,60673.0,3.20919679]
[1728524054994,0.000817,60674.0,60673.0,3.20719679]
[1728524055646,0.000817,60674.0,60673.0,3.23169675]
[1728524056391,0.001636,60691.0,60682.0,0.169793]
[1728524056624,0.24453828,60683.0,60682.0,4.25355464]
[1728524056849,0.001636,60691.0,60683.0,0.128]
[1728524057104,0.001636,60691.0,60683.0,3.93662179]
[1728524057970,0.001636,60691.0,60683.0,3.79209779]
[1728524058648,0.00157146,60684.0,60683.0,3.80309779]
[1728524059099,0.00257146,60684.0,60683.0,3.81409779]
[1728524061343,0.00257146,60684.0,60683.0,3.82243798]
[1728524061780,0.00257146,60684.0,60683.0,0.67220098]
[1728524061999,0.00257146,60684.0,60683.0,3.04648098]
[1728524062953,0.00257146,60684.0,60683.0,3.07113303]
[1728524065171,0.00257146,60684.0,60683.0,3.14653303]
[1728524069480,0.00257146,60684.0,60683.0,3.13982484]
[1728524069689,0.00257146,60684.0,60683.0,1.96129769]
[1728524069917,0.00257146,60684.0,60683.0,1.23646869]
[1728524070143,0.00257146,60684.0,60683.0,1.17101369]
[1728524070833,0.00157146,60684.0,60683.0,1.33631369]
[1728524071260,0.00157146,60684.0,60683.0,1.35931369]
[1728524071496,0.00057146,60684.0,60683.0,1.34831369]
[1728524071725,0.00257146,60684.0,60683.0,1.36431369]
[1728524072152,0.00157146,60684.0,60683.0,1.35631369]
[1728524072380,0.00257146,60684.0,60683.0,1.36331369]
[1728524073288,0.00157146,60684.0,60683.0,4.58005669]
[1728524073502,0.001636,60691.0,60690.0,0.287771]
[1728524073735,0.001636,60691.0,60690.0,5.56297079]
[1728524073953,0.001636,60691.0,60690.0,5.04461579]
[1728524073954,0.01101172,60691.0,60690.0,5.04461579]
[1728524074185,0.001636,60691.0,60690.0,5.04461579]
[1728524074893,0.001636,60691.0,60690.0,5.04561579]
[1728524075095,0.0002,60699.0,60698.0,0.16475]
[1728524075364,0.0002,60699.0,60698.0,0.71442079]
[1728524075583,0.00957572,60699.0,60698.0,4.36105279]
[1728524075807,0.0002,60699.0,60698.0,4.36105279]
[1728524076946,0.0002,60699.0,60698.0,4.36605279]
[1728524077408,0.0002,60699.0,60698.0,4.36805279]
[1728524077627,0.0012,60699.0,60698.0,4.37805279]
[1728524077847,0.0012,60699.0,60698.0,4.40254994]
[1728524078067,0.0012,60699.0,60698.0,4.40454994]
[1728524078295,0.0012,60699.0,60698.0,4.41654994]
[1728524079381,0.0012,60699.0,60698.0,4.41454994]
[1728524080551,0.002016,60699.0,60698.0,4.41454994]
[1728524081424,0.00188836,60699.0,60698.0,4.41454994]
[1728524081830,0.00188836,60699.0,60698.0,4.21624994]
[1728524083137,0.00188836,60699.0,60698.0,4.23924994]
[1728524087135,0.00188836,60699.0,60698.0,4.24583994]
[1728524088210,0.001634,60707.0,60706.0,0.45296115]
[1728524088436,0.001634,60707.0,60706.0,4.35636479]
[1728524088683,0.01112947,60707.0,60706.0,3.91535479]
[1728524088904,0.001634,60707.0,60706.0,3.91535479]
[1728524089554,0.001634,60707.0,60706.0,3.92235479]
[1728524093113,0.001834,60719.0,60712.0,0.287712]
[1728524093340,0.001834,60719.0,60712.0,0.63678279]
[1728524093546,0.001834,60719.0,60712.0,3.61631379]
[1728524094061,8.255e-05,60720.0,60719.0,0.292693]
[1728524094277,0.2483382,60725.0,60719.0,0.292693]
[1728524094278,0.2483382,60725.0,60724.0,0.47591215]
[1728524094485,0.2483382,60725.0,60724.0,0.63674979]
[1728524094709,0.001734,60726.0,60725.0,0.123]
[1728524094935,0.001734,60726.0,60725.0,1.31797064]
[1728524095167,0.001734,60726.0,60725.0,1.25255964]
[1728524095891,0.001734,60726.0,60725.0,1.07166864]
[1728524096108,0.001734,60726.0,60725.0,1.04798564]
[1728524096329,0.002734,60726.0,60725.0,1.04798564]
[1728524096968,0.002734,60726.0,60725.0,0.67792764]
[1728524097180,0.002734,60726.0,60725.0,0.75022764]
[1728524098460,0.002734,60726.0,60725.0,0.44851364]
[1728524099964,0.002734,60726.0,60725.0,0.4721801]
[1728524101487,0.002734,60726.0,60725.0,0.28834246]
[1728524101696,0.077734,60726.0,60725.0,0.28834246]
[1728524103240,0.057734,60726.0,60725.0,0.28834246]
[1728524103478,0.0159176,60730.0,60729.0,0.164665]
[1728524104608,0.0189176,60730.0,60729.0,0.164665]
[1728524105491,0.0189176,60730.0,60729.0,0.44850264]
[1728524110722,0.0189176,60730.0,60729.0,1.21177064]
[1728524111598,0.0189176,60730.0,60729.0,1.17594164]
[1728524112025,0.0189176,60730.0,60729.0,1.15148864]
[1728524112247,0.0189176,60730.0,60729.0,0.90354764]
[1728524112476,0.0189176,60730.0,60729.0,0.74394164]
[1728524112696,0.0189176,60730.0,60729.0,0.44850264]
[1728524112911,0.0189176,60730.0,60729.0,0.74392364]
[1728524113691,0.0189176,60730.0,60729.0,0.560086]
[1728524113916,0.0966176,60730.0,60729.0,0.264665]
[1728524114600,0.0966176,60730.0,60729.0,0.298595]
[1728524115310,0.0966176,60730.0,60729.0,0.198595]
[1728524115769,0.0966176,60730.0,60728.0,0.26752431]
[1728524115988,0.0966176,60730.0,60729.0,0.164665]
[1728524116874,0.0936176,60730.0,60729.0,0.164665]
[1728524117076,0.0964346,60730.0,60729.0,0.164665]
[1728524117757,0.0944346,60730.0,60729.0,0.164665]
[1728524117979,0.0974346,60730.0,60729.0,0.164665]
[1728524119290,0.14659012,60730.0,60729.0,0.164665]
[1728524119960,0.1466825,60730.0,60729.0,0.164665]
[1728524120179,0.0974346,60730.0,60729.0,0.164665]
[1728524121088,0.10700584,60730.0,60729.0,0.164665]
[1728524121309,0.0785752,60730.0,60729.0,0.164665]
[1728524121757,0.0785752,60730.0,60729.0,0.35289815]
[1728524122005,0.0197346,60730.0,60729.0,0.45289815]
[1728524122720,0.0197346,60730.0,60729.0,0.63673579]
[1728524122940,0.0197346,60730.0,60729.0,0.80160079]
[1728524125502,0.0197346,60730.0,60729.0,0.80660079]
[1728524125716,0.0197346,60730.0,60729.0,0.80160079]
[1728524125977,0.0197346,60730.0,60729.0,0.80960079]
[1728524126166,0.0167346,60730.0,60729.0,0.264665]
[1728524126401,0.0167346,60730.0,60729.0,0.90956979]
[1728524126604,0.0167346,60730.0,60729.0,0.92356979]
[1728524126605,0.02733055,60730.0,60729.0,0.92356979]
[1728524126833,0.0177346,60730.0,60729.0,0.84178179]
[1728524127271,0.0167346,60730.0,60729.0,0.83578179]
[1728524127504,0.0177346,60730.0,60729.0,0.86678179]
[1728524129101,0.0177346,60730.0,60729.0,0.86841579]
[1728524131258,0.0177346,60730.0,60729.0,0.76861879]
[1728524133064,0.0177346,60730.0,60729.0,0.396548]
[1728524133268,0.0177346,60730.0,60729.0,0.570203]
[1728524133473,0.02733055,60730.0,60729.0,0.282299]
[1728524133714,0.0177346,60730.0,60729.0,0.570191]
[1728524133925,0.07665466,60730.0,60729.0,0.570191]
[1728524134163,0.06705871,60730.0,60729.0,0.570191]
[1728524136141,0.09172077,60730.0,60729.0,0.570171]
[1728524136852,0.09172077,60730.0,60729.0,0.282299]
[1728524137085,0.29081537,60730.0,60729.0,0.017634]
[1728524137330,0.60761677,60730.0,60720.0,0.001634]
[1728524137584,0.0788,60724.0,60722.0,0.2483382]
[1728524137789,0.18218139,60723.0,60722.0,0.2483382]
[1728524138020,0.18218139,60723.0,60720.0,0.02571367]
[1728524138253,0.27408139,60722.0,60721.0,0.164687]
[1728524138682,0.28368077,60722.0,60721.0,0.264687]
[1728524138940,0.28368077,60722.0,60721.0,0.164687]
[1728524139399,0.28368077,60722.0,60720.0,0.02571367]
[1728524139619,0.18218139,60721.0,60720.0,0.19040367]
[1728524140070,0.19178077,60721.0,60720.0,0.166324]
[1728524140520,0.19178077,60721.0,60720.0,0.001634]
[1728524140521,0.35646777,60721.0,60720.0,0.001634]
[1728524140748,0.32402854,60721.0,60720.0,0.001634]
[1728524141179,0.48871554,60721.0,60720.0,0.001634]
[1728524141433,0.33402854,60721.0,60720.0,0.001634]
[1728524141660,0.33402854,60721.0,60720.0,0.166324]
[1728524141661,0.27661859,60721.0,60720.0,0.166324]
[1728524141880,0.42464236,60721.0,60720.0,0.002634]
[1728524142117,0.43264236,60721.0,60720.0,0.167324]
[1728524142337,0.43264236,60721.0,60720.0,0.002634]
[1728524142816,0.42464236,60721.0,60720.0,0.166324]
[1728524143033,0.42464236,60721.0,60720.0,0.001634]
[1728524143273,0.27261859,60721.0,60720.0,0.001634]
[1728524143486,0.27243505,60721.0,60720.0,0.166324]
[1728524143702,0.27943505,60721.0,60720.0,0.001634]
[1728524144352,0.27243505,60721.0,60720.0,0.001634]
[1728524144583,0.27943505,60721.0,60720.0,0.001634]
[1728524144813,0.28843505,60721.0,60720.0,0.002634]
[1728524145959,0.28843505,60721.0,60720.0,0.167324]
[1728524146386,0.28843505,60721.0,60720.0,0.002634]
[1728524146827,0.29043505,60721.0,60720.0,0.002634]
[1728524147054,0.28843505,60721.0,60720.0,0.002634]
[1728524147271,0.08342121,60721.0,60720.0,0.002634]
[1728524147501,0.00950634,60721.0,60720.0,0.002634]
[1728524147933,0.07591487,60724.0,60720.0,0.002634]
[1728524148155,0.05837503,60721.0,60720.0,0.002634]
[1728524148383,0.04926866,60721.0,60720.0,0.002634]
[1728524148596,0.05837503,60721.0,60720.0,0.002634]
[1728524148821,0.05837489,60721.0,60720.0,0.002634]
[1728524149396,0.57413268,60721.0,60720.0,0.002634]
[1728524149511,0.52486416,60721.0,60720.0,0.002634]
[1728524149773,0.68567077,60721.0,60720.0,0.002634]
[1728524150009,0.52486416,60721.0,60720.0,0.003634]
[1728524150435,0.79897076,60721.0,60720.0,0.003634]
[1728524150674,0.79897076,60721.0,60720.0,0.002634]
[1728524150898,0.80297076,60721.0,60720.0,0.002634]
[1728524151555,0.79897076,60721.0,60720.0,0.001634]
[1728524151993,0.79997076,60721.0,60720.0,0.002634]
[1728524152225,0.34554401,60721.0,60720.0,0.001634]
[1728524152451,0.34854401,60721.0,60720.0,0.002634]
[1728524152676,0.51323101,60721.0,60720.0,0.002634]
[1728524152893,0.36054401,60721.0,60720.0,0.002634]
[1728524153129,0.52623101,60721.0,60720.0,0.003634]
[1728524153348,0.52623101,60721.0,60720.0,0.002634]
[1728524153581,0.51323101,60721.0,60720.0,0.002634]
[1728524153794,0.52423101,60721.0,60720.0,0.003634]
[1728524154016,0.52223101,60721.0,60720.0,0.003634]
[1728524154469,0.57144432,60721.0,60720.0,0.003634]
[1728524154911,0.59724545,60721.0,60720.0,0.003634]
[1728524155140,0.54803214,60721.0,60720.0,0.003634]
[1728524155384,0.59724205,60721.0,60720.0,0.003634]
[1728524155631,0.54803214,60721.0,60720.0,0.003634]
[1728524156118,0.55003214,60721.0,60720.0,0.003634]
[1728524156846,0.54803214,60721.0,60720.0,0.003634]
[1728524157140,0.25695206,60721.0,60720.0,0.003634]
[1728524157375,0.20774514,60721.0,60720.0,0.003634]
[1728524157611,0.20774514,60721.0,60720.0,0.168324]
[1728524157612,0.12071332,60721.0,60720.0,0.168324]
[1728524159022,0.0469075,60721.0,60720.0,0.168324]
[1728524160453,0.0489075,60721.0,60720.0,0.003634]
[1728524160684,0.37443214,60721.0,60720.0,0.003634]
[1728524160942,0.83610487,60721.0,60720.0,0.003634]
[1728524161180,0.73766529,60721.0,60720.0,0.003634]
[1728524161462,0.37243214,60721.0,60720.0,0.003634]
[1728524161699,0.20774514,60721.0,60720.0,0.003634]
[1728524161938,0.37443214,60721.0,60720.0,0.003634]
[1728524162174,0.30615472,60721.0,60720.0,0.003634]
[1728524162412,0.20774514,60721.0,60720.0,0.003634]
[1728524162908,0.0469075,60721.0,60720.0,0.168324]
[1728524163382,0.02110637,60721.0,60720.0,0.168324]
[1728524163860,0.012,60721.0,60720.0,0.168324]
[1728524165076,0.001,60721.0,60720.0,0.167324]
[1728524165103,0.04919585,60725.0,60720.0,0.001634]
[1728524165333,0.04919495,60725.0,60724.0,0.164679]
[1728524165822,0.000817,60727.0,60726.0,0.164674]
[1728524166071,0.000817,60727.0,60726.0,0.62121164]
[1728524166793,0.000817,60727.0,60726.0,0.432374]
[1728524167962,0.002817,60727.0,60726.0,0.450374]
[1728524168423,0.001817,60727.0,60726.0,0.440374]
[1728524168676,0.001817,60727.0,60726.0,0.444374]
[1728524168904,0.001817,60727.0,60726.0,0.46790368]
[1728524169357,0.000817,60727.0,60726.0,0.45990368]
[1728524169569,0.000817,60727.0,60726.0,0.46390368]
[1728524169804,0.000817,60727.0,60726.0,0.46890368]
[1728524170285,0.000817,60727.0,60726.0,0.46490368]
[1728524170514,0.000817,60727.0,60726.0,0.46890368]
[1728524171224,0.000817,60727.0,60726.0,0.46490368]
[1728524171680,0.000817,60727.0,60726.0,0.46790368]
[1728524171896,0.000817,60727.0,60726.0,0.46490368]
[1728524172127,0.000817,60727.0,60726.0,0.46690368]
[1728524172628,0.000817,60727.0,60726.0,0.36960368]
[1728524173141,0.000817,60727.0,60726.0,0.37460368]
[1728524173592,0.000817,60727.0,60726.0,0.37060368]
[1728524173828,0.000817,60727.0,60726.0,0.26860368]
[1728524174239,0.000817,60727.0,60726.0,0.26360368]
[1728524174676,0.000817,60727.0,60726.0,0.26560368]
[1728524174924,0.000817,60727.0,60726.0,0.19120368]
[1728524175162,0.51455879,60727.0,60726.0,0.003]
[1728524175409,0.82136187,60727.0,60726.0,0.003]
[1728524175641,0.002,60721.0,60720.0,0.001634]
[1728524175862,0.51575779,60721.0,60720.0,0.001634]
[1728524176087,0.90495932,60721.0,60720.0,0.001634]
[1728524176541,0.7818523,60721.0,60720.0,0.001634]
[1728524176773,1.0301905,60721.0,60720.0,0.001634]
[1728524177034,1.0301905,60721.0,60701.0,0.32948]
[1728524177035,0.82931979,60721.0,60701.0,0.32948]
[1728524177309,0.07589282,60708.0,60704.0,0.329466]
[1728524177544,0.07389282,60708.0,60707.0,0.164725]
[1728524177755,0.07389282,60709.0,60704.0,0.329466]
[1728524177998,0.04925452,60709.0,60708.0,0.164722]
[1728524178201,0.07388308,60711.0,60708.0,0.164721]
[1728524178645,0.04925773,60709.0,60708.0,0.164721]
[1728524179117,0.04925773,60709.0,60707.0,0.5777892]
[1728524179338,0.07388308,60711.0,60710.0,0.164717]
[1728524180327,0.09851077,60713.0,60712.0,0.164712]
[1728524180557,0.09851077,60713.0,60708.0,0.002]
[1728524180791,0.002,60707.0,60705.0,0.32946]
[1728524181014,0.04926933,60707.0,60705.0,0.164731]
[1728524181246,0.04926933,60706.0,60705.0,0.164731]
[1728524181494,0.073904,60708.0,60705.0,0.329459]
[1728524181707,0.05837611,60706.0,60705.0,0.164731]
[1728524181925,0.002,60706.0,60705.0,0.164731]
[1728524182148,0.09851077,60709.0,60705.0,0.329461]
[1728524182353,0.07392823,60707.0,60703.0,0.164735]
[1728524182558,0.04928572,60704.0,60703.0,0.164735]
[1728524183447,0.07392823,60706.0,60705.0,0.164731]
[1728524183658,0.07392823,60706.0,60705.0,0.165731]
[1728524184639,0.07392823,60706.0,60705.0,0.164731]
[1728524185149,0.07892823,60706.0,60705.0,0.164731]
[1728524185615,0.05827474,60706.0,60705.0,0.164731]
[1728524186271,0.009,60706.0,60705.0,0.164731]
[1728524189305,0.08292823,60706.0,60705.0,0.164731]
[1728524189784,0.17889684,60706.0,60705.0,0.001634]
[1728524190023,0.17889684,60706.0,60705.0,0.166365]
[1728524190024,0.25279446,60706.0,60705.0,0.166365]
[1728524190246,0.25279446,60706.0,60705.0,0.001634]
[1728524190489,0.09195682,60706.0,60705.0,0.166365]
[1728524191944,0.009,60706.0,60705.0,0.166365]
[1728524192415,0.0180532,60706.0,60705.0,0.166365]
[1728524192651,0.009,60706.0,60705.0,0.166365]
[1728524193602,0.009,60706.0,60705.0,0.339465]
[1728524196367,0.005,60706.0,60705.0,0.339465]
[1728524196791,0.04925544,60709.0,60708.0,0.164722]
[1728524197282,0.04925544,60710.0,60709.0,0.16472]
[1728524197688,0.00906324,60710.0,60709.0,0.16472]
[1728524197897,0.07389762,60712.0,60706.0,0.329456]
[1728524198119,0.07386966,60712.0,60711.0,0.329425]
[1728524198337,0.07386966,60712.0,60711.0,0.494139]
[1728524198763,0.07386966,60712.0,60706.0,0.329456]
[1728524198983,0.04915,60707.0,60706.0,0.329456]
[1728524199192,0.04915,60707.0,60706.0,0.494184]
[1728524199840,0.07487501,60709.0,60708.0,0.164722]
[1728524199841,0.07487393,60709.0,60708.0,0.164722]
[1728524200123,0.002,60710.0,60709.0,0.16472]
[1728524200331,0.002,60710.0,60708.0,0.329444]
[1728524200332,0.07386708,60711.0,60710.0,0.164717]
[1728524201620,0.09849021,60713.0,60710.0,0.164717]
[1728524201833,0.07686766,60711.0,60710.0,0.164717]
[1728524202047,0.003,60711.0,60710.0,0.164717]
[1728524202716,0.003,60711.0,60710.0,0.261117]
[1728524202938,0.006,60711.0,60710.0,0.261117]
[1728524203154,0.003,60711.0,60710.0,0.261117]
[1728524204285,0.006,60711.0,60710.0,0.261117]
[1728524205597,0.07986766,60711.0,60710.0,0.261117]
[1728524205823,0.006,60711.0,60710.0,0.261117]
[1728524209153,0.006,60711.0,60710.0,0.28558611]
[1728524211160,0.01506814,60711.0,60710.0,0.28558611]
[1728524211589,0.14043252,60711.0,60710.0,0.28558611]
[1728524212968,0.01506814,60711.0,60710.0,1.07511975]
[1728524213201,0.01506814,60711.0,60710.0,2.96134975]
[1728524213432,0.006,60711.0,60710.0,3.45883775]
[1728524213644,0.006,60711.0,60710.0,3.29169675]
[1728524214082,0.000817,60720.0,60719.0,0.440693]
[1728524214297,0.000817,60720.0,60719.0,1.42555664]
[1728524214514,0.000817,60720.0,60719.0,1.40542764]
[1728524216078,0.000817,60720.0,60719.0,1.41642764]
[1728524216435,0.000817,60720.0,60719.0,0.877236]
[1728524216532,0.000817,60720.0,60719.0,0.591355]
[1728524217449,0.000817,60720.0,60719.0,0.61595918]
[1728524218374,0.000817,60720.0,60719.0,0.47629718]
[1728524218591,0.000817,60720.0,60719.0,0.93097118]
[1728524221226,0.000817,60720.0,60719.0,0.89506118]
[1728524221694,0.000817,60720.0,60719.0,0.63665218]
[1728524222873,0.000817,60720.0,60719.0,0.91297418]
[1728524223106,0.000817,60720.0,60719.0,0.38209718]
[1728524224276,0.000817,60720.0,60719.0,1.19438682]
[1728524224992,0.000817,60720.0,60719.0,1.18838682]
[1728524225443,0.000817,60720.0,60719.0,1.19338682]
[1728524225675,0.000817,60720.0,60719.0,1.18838682]
[1728524226105,0.000817,60720.0,60719.0,1.19338682]
[1728524227748,0.000817,60727.0,60726.0,0.464174]
[1728524227981,0.000817,60727.0,60726.0,0.81324479]
[1728524228212,0.000817,60727.0,60726.0,1.34582379]
[1728524229107,0.001817,60727.0,60726.0,1.35582379]
[1728524229321,0.000817,60727.0,60726.0,1.34582379]
[1728524229748,0.001817,60727.0,60726.0,1.35582379]
[1728524230870,0.002817,60727.0,60726.0,1.36582379]
[1728524231838,0.002817,60727.0,60726.0,1.38988097]
[1728524232486,0.002817,60727.0,60726.0,0.85230333]
[1728524232707,0.002817,60727.0,60726.0,0.63060918]
[1728524233139,0.002817,60727.0,60726.0,0.81884233]
[1728524234792,0.000817,60735.0,60729.0,0.005]
[1728524235015,0.000817,60735.0,60734.0,0.292652]
[1728524235247,0.000817,60735.0,60734.0,3.18994264]
[1728524235472,0.000817,60735.0,60734.0,3.06743182]
[1728524235689,0.000817,60735.0,60734.0,2.15804779]
[1728524235901,0.000817,60735.0,60734.0,1.17008879]
[1728524236639,0.000817,60735.0,60734.0,0.98625115]